bitfinex/quotes_BTCUSD_20251209
["timestamp","ask_amount","ask_price","bid_price","bid_amount"]
[1765245485551,0.01756,90107.0,90106.0,0.31552291]
[1765245486297,0.01756,90107.0,90106.0,0.31852291]
[1765245486802,0.01756,90107.0,90106.0,0.07705211]
[1765245487102,0.01756,90107.0,90106.0,0.2633408]
[1765245487548,0.01756,90107.0,90106.0,0.2643408]
[1765245489091,0.03596606,90122.0,90118.0,0.01109656]
[1765245489092,0.01109606,90122.0,90118.0,0.01109656]
[1765245489448,0.23302486,90120.0,90117.0,0.01651]
[1765245489647,0.23302486,90120.0,90118.0,0.07131868]
[1765245489862,0.01109631,90120.0,90118.0,0.07997868]
[1765245490401,0.01109631,90120.0,90118.0,0.00866]
[1765245490733,0.2330244,90120.0,90118.0,0.00866]
[1765245492055,0.01309631,90120.0,90118.0,0.00866]
[1765245492412,0.23302434,90120.0,90118.0,0.00866]
[1765245492609,0.23402434,90120.0,90118.0,0.00866]
[1765245492814,0.01209631,90120.0,90119.0,0.02954217]
[1765245493920,0.001,90120.0,90119.0,0.02954217]
[1765245494137,0.23948424,90121.0,90119.0,0.02954217]
[1765245494715,0.01756,90121.0,90119.0,0.02954217]
[1765245495294,0.001,90120.0,90119.0,0.02954217]
[1765245495505,0.22192632,90120.0,90119.0,0.02954217]
[1765245495954,0.01856,90121.0,90119.0,0.02954217]
[1765245496106,0.01756,90121.0,90119.0,0.02954217]
[1765245496304,0.23948604,90121.0,90119.0,0.02954217]
[1765245496512,0.22292632,90120.0,90119.0,0.02954217]
[1765245497236,0.001,90120.0,90119.0,0.02954217]
[1765245498226,0.23948611,90121.0,90119.0,0.02954217]
[1765245498445,0.01856,90121.0,90120.0,0.01621]
[1765245498644,0.01856,90121.0,90120.0,0.11393035]
[1765245498851,0.01756,90121.0,90120.0,0.09105035]
[1765245499814,0.01756,90121.0,90120.0,0.09305035]
[1765245500036,0.01756,90121.0,90120.0,0.002]
[1765245500233,0.04530048,90121.0,90120.0,0.002]
[1765245500446,0.04530048,90121.0,90120.0,0.003]
[1765245500805,0.04530048,90121.0,90120.0,0.002]
[1765245501240,0.04530048,90121.0,90120.0,0.001]
[1765245502801,0.08472048,90121.0,90120.0,0.001]
[1765245503491,0.06165048,90121.0,90120.0,0.001]
[1765245503823,0.08472048,90121.0,90120.0,0.001]
[1765245505025,0.08572048,90121.0,90120.0,0.001]
[1765245505222,0.01109717,90113.0,90110.0,0.01109754]
[1765245505429,0.01109717,90113.0,90111.0,0.0505354]
[1765245506068,0.0110968,90116.0,90111.0,0.28358034]
[1765245506412,0.0110968,90116.0,90113.0,0.23304072]
[1765245506542,0.01246,90117.0,90113.0,0.23304072]
[1765245507402,0.01246,90117.0,90116.0,0.22193617]
[1765245507603,0.01109643,90119.0,90116.0,0.23303297]
[1765245507770,0.01109643,90119.0,90116.0,0.0110968]
[1765245508766,0.01209643,90119.0,90116.0,0.0110968]
[1765245510891,0.01209643,90119.0,90113.0,0.01109717]
[1765245510892,0.01109668,90117.0,90113.0,0.23304035]
[1765245511866,0.01109668,90117.0,90114.0,0.01109705]
[1765245512020,0.0110968,90116.0,90113.0,0.01109717]
[1765245512219,0.0110968,90116.0,90113.0,0.2330404]
[1765245512777,0.01109668,90117.0,90113.0,0.2330404]
[1765245512985,0.01109668,90117.0,90114.0,0.01109705]
[1765245513955,0.01109656,90118.0,90115.0,0.01109693]
[1765245514355,0.01109668,90117.0,90114.0,0.01109705]
[1765245514693,0.22193863,90115.0,90113.0,0.001]
[1765245514914,0.23303556,90115.0,90112.0,0.00866]
[1765245515403,0.01109693,90115.0,90112.0,0.00866]
[1765245515576,0.23303795,90115.0,90112.0,0.00866]
[1765245515899,0.23305209,90109.0,90104.0,0.22791038]
[1765245516112,0.01752,90108.0,90105.0,0.084524]
[1765245516687,0.02861779,90108.0,90105.0,0.07342584]
[1765245517012,0.01752,90108.0,90105.0,0.30648686]
[1765245517425,0.02861779,90108.0,90105.0,0.084524]
[1765245517563,0.02861779,90108.0,90106.0,0.05763638]
[1765245518395,0.01752,90108.0,90106.0,0.05763638]
[1765245519322,0.01752,90108.0,90106.0,0.05963638]
[1765245519525,0.01752,90108.0,90106.0,0.002]
[1765245519890,0.03942,90107.0,90106.0,0.002]
[1765245520879,0.03942,90107.0,90106.0,0.001]
[1765245521533,0.01109853,90102.0,90099.0,0.0110989]
[1765245521872,0.01109865,90101.0,90098.0,0.01109902]
[1765245522002,0.01109865,90101.0,90090.0,0.23066004]
[1765245522003,0.01109902,90098.0,90094.0,0.01109951]
[1765245522206,0.01109902,90098.0,90094.0,0.05636463]
[1765245522207,0.01752,90097.0,90094.0,0.05636463]
[1765245522447,0.02861914,90097.0,90094.0,0.04526512]
[1765245522784,0.22198543,90096.0,90094.0,0.04526512]
[1765245523311,0.22198543,90096.0,90090.0,0.00866]
[1765245523312,0.22199258,90094.0,90090.0,0.00866]
[1765245523602,0.23309459,90093.0,90090.0,0.00866]
[1765245523788,0.02750988,90091.0,90086.0,0.23311009]
[1765245523991,0.01110001,90090.0,90087.0,0.01110038]
[1765245524988,0.01109988,90091.0,90088.0,0.01110025]
[1765245525197,0.01109964,90093.0,90089.0,0.01110013]
[1765245525494,0.01109951,90094.0,90090.0,0.01110001]
[1765245525677,0.0110989,90099.0,90094.0,0.01109951]
[1765245525873,0.0110984,90103.0,90094.0,0.01109951]
[1765245525874,0.0110984,90103.0,90099.0,0.0110989]
[1765245526175,0.01752,90102.0,90100.0,0.23307387]
[1765245526371,0.01109779,90108.0,90104.0,0.01109828]
[1765245526597,0.02861791,90107.0,90103.0,0.0110984]
[1765245526919,0.233054,90108.0,90103.0,0.0110984]
[1765245526920,0.01752,90106.0,90105.0,0.01109816]
[1765245527280,0.01746288,90106.0,90105.0,0.1019567]
[1765245528106,0.01746288,90106.0,90105.0,0.1253767]
[1765245528718,0.01846288,90106.0,90105.0,0.1253767]
[1765245529300,0.01746288,90106.0,90105.0,0.1253767]
[1765245529971,0.02046288,90106.0,90105.0,0.1253767]
[1765245530103,0.01746288,90106.0,90105.0,0.1253767]
[1765245530304,0.01846288,90106.0,90105.0,0.1253767]
[1765245532833,0.01746288,90106.0,90105.0,0.1253767]
[1765245533042,0.01746288,90106.0,90105.0,0.1283767]
[1765245534060,0.01746288,90106.0,90105.0,0.1303767]
[1765245538535,0.01746288,90106.0,90105.0,0.13176511]
[1765245540306,0.01109606,90122.0,90119.0,0.01109643]
[1765245540483,0.01752,90121.0,90119.0,0.01109643]
[1765245542049,0.01752,90121.0,90119.0,0.23302461]
[1765245542262,0.01952,90121.0,90119.0,0.23302461]
[1765245542464,0.01952,90121.0,90119.0,0.01109643]
[1765245542666,0.01952,90121.0,90118.0,0.00866]
[1765245543132,0.01952,90121.0,90118.0,0.01975656]
[1765245543534,0.01752,90121.0,90118.0,0.01975656]
[1765245543735,0.01952,90121.0,90118.0,0.01975656]
[1765245543953,0.01952,90121.0,90118.0,0.24168583]
[1765245544320,0.01952,90121.0,90119.0,0.07188518]
[1765245544716,0.03061619,90121.0,90118.0,0.00866]
[1765245544916,0.01952,90121.0,90118.0,0.01975656]
[1765245545144,0.01952,90121.0,90119.0,0.22192878]
[1765245545970,0.01952,90121.0,90120.0,0.01662]
[1765245546171,0.03332809,90134.0,90130.0,0.01109508]
[1765245546435,0.01752,90133.0,90132.0,0.22189461]
[1765245546805,0.01752,90133.0,90132.0,0.24951107]
[1765245547082,0.01752,90133.0,90132.0,0.26613107]
[1765245547638,0.01752,90133.0,90132.0,0.04423646]
[1765245548906,0.02052,90133.0,90132.0,0.04423646]
[1765245549309,0.02052,90133.0,90132.0,0.02761646]
[1765245549503,0.23300125,90129.0,90126.0,0.00866]
[1765245550479,0.2482651,90128.0,90126.0,0.00866]
[1765245550824,0.22192878,90119.0,90118.0,0.00866]
[1765245551454,0.22192878,90119.0,90118.0,0.03394014]
[1765245551999,0.22192878,90119.0,90118.0,0.03494014]
[1765245552989,0.22192878,90119.0,90118.0,0.03594014]
[1765245554764,0.01752,90120.0,90118.0,0.03594014]
[1765245555520,0.01752,90120.0,90118.0,0.03494014]
[1765245555753,0.01752,90120.0,90119.0,0.05121076]
[1765245556148,0.01752,90120.0,90118.0,0.00966]
[1765245556149,0.22192878,90119.0,90118.0,0.01066]
[1765245556521,0.22192878,90119.0,90118.0,0.00966]
[1765245556952,0.22192878,90119.0,90118.0,0.001]
[1765245557543,0.22192878,90119.0,90112.0,0.02424]
[1765245557544,0.23303689,90115.0,90112.0,0.02424]
[1765245557964,0.23303102,90117.0,90114.0,0.01553]
[1765245558172,0.23303102,90117.0,90115.0,0.04700688]
[1765245558371,0.23303102,90117.0,90116.0,0.01553]
[1765245559065,0.23403102,90117.0,90116.0,0.01553]
[1765245559486,0.23303102,90117.0,90116.0,0.01553]
[1765245559698,0.23403102,90117.0,90116.0,0.01653]
[1765245559918,0.23403102,90117.0,90116.0,0.07030208]
[1765245560120,0.2229337,90117.0,90116.0,0.09454208]
[1765245560349,0.001,90117.0,90116.0,0.09454208]
[1765245560548,0.001,90117.0,90116.0,0.07030208]
[1765245560954,0.001,90117.0,90116.0,0.09454208]
[1765245561467,0.001,90117.0,90116.0,0.07030208]
[1765245563177,0.001,90117.0,90116.0,0.09454208]
[1765245567280,0.001,90117.0,90116.0,0.09592371]
[1765245570742,0.001,90117.0,90116.0,0.09454208]
[1765245572426,0.001,90117.0,90116.0,0.001]
[1765245572673,0.04086,90117.0,90116.0,0.001]
[1765245573763,0.06286,90117.0,90116.0,0.001]
[1765245575892,0.09060171,90117.0,90116.0,0.001]
[1765245576983,0.05074171,90117.0,90116.0,0.001]
[1765245577187,0.01729,90117.0,90116.0,0.001]
[1765245577389,0.06860171,90117.0,90116.0,0.001]
[1765245579254,0.04086,90117.0,90116.0,0.001]
[1765245579697,0.06860171,90117.0,90116.0,0.001]
[1765245580268,0.01729,90117.0,90116.0,0.001]
[1765245580506,0.001,90117.0,90116.0,0.001]
[1765245580997,0.02874171,90117.0,90116.0,0.001]
[1765245582732,0.001,90117.0,90116.0,0.001]
[1765245584201,0.02874171,90117.0,90116.0,0.001]
[1765245585762,0.001,90117.0,90116.0,0.001]
[1765245586248,0.02492,90117.0,90116.0,0.001]
[1765245586833,0.05266171,90117.0,90116.0,0.001]
[1765245587580,0.02874171,90117.0,90116.0,0.001]
[1765245587834,0.06854171,90117.0,90116.0,0.001]
[1765245589843,0.07853989,90117.0,90116.0,0.001]
[1765245590643,0.23306576,90104.0,90101.0,0.00866]
[1765245590841,0.23306576,90104.0,90102.0,0.0508124]
[1765245591609,0.01752,90106.0,90103.0,0.27296659]
[1765245591770,0.01752,90106.0,90105.0,0.23775326]
[1765245592209,0.01752,90106.0,90105.0,0.26186326]
[1765245593084,0.23300783,90126.0,90119.0,0.23302461]
[1765245593289,0.25053141,90125.0,90120.0,0.04771606]
[1765245593469,0.25053141,90125.0,90121.0,0.00866]
[1765245594663,0.23301421,90124.0,90121.0,0.00866]
[1765245596346,0.01109582,90124.0,90121.0,0.01975619]
[1765245596548,0.01109582,90124.0,90122.0,0.0568723]
[1765245597652,0.2330141,90124.0,90122.0,0.0568723]
[1765245598089,0.2330141,90124.0,90121.0,0.00866]
[1765245599362,0.01752,90125.0,90122.0,0.01109606]
[1765245599796,0.01752,90125.0,90123.0,0.22191713]
[1765245601220,0.01752,90125.0,90124.0,0.0399]
[1765245601221,0.01852,90125.0,90124.0,0.0399]
[1765245601472,0.00161287,90128.0,90124.0,0.0399]
[1765245601473,0.01109385,90140.0,90135.0,0.01109446]
[1765245601642,0.02252336,90144.0,90125.0,0.221914]
[1765245601643,0.01752,90153.0,90149.0,0.22185492]
[1765245601853,0.01752,90153.0,90149.0,0.06348941]
[1765245601854,0.02067895,90150.0,90149.0,0.06348941]
[1765245602338,0.02067895,90150.0,90149.0,0.08759941]
[1765245603121,0.02067895,90150.0,90149.0,0.06348941]
[1765245603320,0.02067895,90150.0,90149.0,0.04769941]
[1765245603692,0.24253141,90150.0,90149.0,0.04769941]
[1765245604007,0.24253141,90150.0,90149.0,0.05169941]
[1765245604738,0.25841141,90150.0,90149.0,0.004]
[1765245604895,0.30594428,90150.0,90149.0,0.004]
[1765245605301,0.62894428,90150.0,90149.0,0.004]
[1765245605748,0.69146727,90150.0,90149.0,0.002]
[1765245605957,0.82356946,90150.0,90149.0,0.002]
[1765245606127,0.79990216,90150.0,90149.0,0.002]
[1765245606325,0.79990216,90150.0,90120.0,0.01109631]
[1765245606326,0.0110957,90125.0,90120.0,0.01109631]
[1765245606558,0.01109594,90123.0,90117.0,0.01109668]
[1765245607013,0.01109606,90122.0,90118.0,0.01109656]
[1765245607262,0.23302049,90121.0,90119.0,0.03467206]
[1765245609177,0.01109631,90120.0,90117.0,0.01109668]
[1765245609417,0.01109606,90122.0,90117.0,0.01109668]
[1765245609418,0.01109606,90122.0,90120.0,0.01663]
[1765245609618,0.01109606,90122.0,90121.0,0.00866]
[1765245610234,0.23301745,90122.0,90121.0,0.00866]
[1765245610873,0.23301745,90122.0,90121.0,0.00966]
[1765245611455,0.23301745,90122.0,90121.0,0.01066]
[1765245611661,0.23301745,90122.0,90121.0,0.03613899]
[1765245611883,0.23301745,90122.0,90121.0,0.01066]
[1765245613249,0.01109606,90122.0,90121.0,0.02636]
[1765245614210,0.01752,90124.0,90121.0,0.25938004]
[1765245614549,0.0110952,90129.0,90124.0,0.01109582]
[1765245614768,0.0110952,90129.0,90121.0,0.002]
[1765245614769,0.01109582,90124.0,90121.0,0.002]
[1765245614959,0.22192107,90123.0,90121.0,0.002]
[1765245615487,0.22192107,90123.0,90121.0,0.001]
[1765245615898,0.22192107,90123.0,90121.0,0.002]
[1765245616102,0.22192107,90123.0,90122.0,0.02658882]
[1765245616525,0.22194109,90114.0,90113.0,0.00866]
[1765245618031,0.22194109,90114.0,90113.0,0.01166]
[1765245618652,0.26079109,90114.0,90113.0,0.003]
[1765245618873,0.26079109,90114.0,90113.0,0.005]
[1765245619327,0.26079109,90114.0,90113.0,0.002]
[1765245619547,0.0110984,90103.0,90099.0,0.0110989]
[1765245619708,0.25057654,90107.0,90106.0,0.00866]
[1765245620801,0.25057654,90107.0,90106.0,0.00966]
[1765245621472,0.02861791,90107.0,90106.0,0.00966]
[1765245621672,0.02861791,90107.0,90106.0,0.06679788]
[1765245622235,0.02861791,90107.0,90106.0,0.06779788]
[1765245622623,0.23947833,90107.0,90106.0,0.06779788]
[1765245622823,0.01752,90107.0,90106.0,0.06779788]
[1765245623277,0.01752,90109.0,90108.0,0.01109779]
[1765245623495,0.02861767,90109.0,90106.0,0.02636]
[1765245623860,0.22195833,90107.0,90106.0,0.01066]
[1765245624058,0.22195833,90107.0,90106.0,0.00966]
[1765245624285,0.0110984,90103.0,90100.0,0.0381968]
[1765245624463,0.0105984,90103.0,90101.0,0.01648827]
[1765245625047,0.22197233,90102.0,90101.0,0.01648827]
[1765245625569,0.23256864,90103.0,90101.0,0.01648827]
[1765245626442,0.0105984,90103.0,90101.0,0.01648827]
[1765245626654,0.0105984,90103.0,90101.0,0.01848827]
[1765245626859,0.0105984,90103.0,90102.0,0.06495307]
[1765245627468,0.01109791,90107.0,90104.0,0.01109828]
[1765245627665,0.01109791,90107.0,90106.0,0.00866]
[1765245628362,0.01109779,90108.0,90106.0,0.00866]
[1765245628583,0.01109779,90108.0,90107.0,0.0157]
[1765245628802,0.01752,90109.0,90107.0,0.05663498]
[1765245629117,0.01752,90109.0,90107.0,0.04093498]
[1765245629329,0.22195587,90108.0,90107.0,0.04093498]
[1765245629786,0.22195587,90108.0,90106.0,0.00966]
[1765245629996,0.22195587,90108.0,90107.0,0.001]
[1765245631908,0.22195587,90108.0,90106.0,0.00966]
[1765245632149,0.22195587,90108.0,90106.0,0.00866]
[1765245632365,0.22195587,90108.0,90107.0,0.002]
[1765245632991,0.22195587,90108.0,90107.0,0.001]
[1765245633206,0.22195587,90108.0,90106.0,0.00966]
[1765245633417,0.22195587,90108.0,90106.0,0.01066]
[1765245633656,0.22195761,90108.0,90106.0,0.00866]
[1765245633863,0.25057327,90109.0,90107.0,0.04561112]
[1765245634080,0.25057327,90109.0,90107.0,0.04761112]
[1765245634295,0.25057327,90109.0,90107.0,0.03191112]
[1765245635135,0.25057327,90109.0,90107.0,0.03091112]
[1765245635619,0.01567,90108.0,90107.0,0.03091112]
[1765245635882,0.06659448,90108.0,90107.0,0.02991112]
[1765245636093,0.0110984,90103.0,90099.0,0.0197589]
[1765245636308,0.22197065,90102.0,90099.0,0.0197589]
[1765245636487,0.22197472,90101.0,90099.0,0.00866]
[1765245636710,0.22197472,90101.0,90100.0,0.05075874]
[1765245636919,0.23306918,90102.0,90100.0,0.05075874]
[1765245637138,0.01109853,90102.0,90100.0,0.06645874]
[1765245637352,0.0110984,90103.0,90101.0,0.0157]
[1765245637571,0.23306823,90103.0,90100.0,0.05075874]
[1765245637744,0.22197311,90101.0,90099.0,0.01066]
[1765245638165,0.22197311,90101.0,90099.0,0.01266]
[1765245638552,0.22197311,90101.0,90099.0,0.01066]
[1765245638756,0.22197311,90101.0,90094.0,0.01975951]
[1765245638757,0.01109914,90097.0,90094.0,0.00866]
[1765245638951,0.01109988,90091.0,90087.0,0.5450058]
[1765245639135,0.22200222,90090.0,90088.0,0.00866]
[1765245639924,0.23309945,90091.0,90088.0,0.00866]
[1765245640136,0.01109988,90091.0,90088.0,0.01976025]
[1765245640347,0.01109988,90091.0,90089.0,0.06221572]
[1765245640557,0.01109951,90094.0,90090.0,0.0157]
[1765245640776,0.01109964,90093.0,90090.0,0.24879974]
[1765245640915,0.01109964,90093.0,90090.0,0.02680001]
[1765245641333,0.01109964,90093.0,90082.0,0.22201991]
[1765245641334,0.005,90090.0,90082.0,0.22201991]
[1765245641539,0.01110013,90089.0,90086.0,0.23311037]
[1765245641762,0.01110013,90089.0,90086.0,0.0111005]
[1765245642146,0.01109988,90091.0,90088.0,0.01110025]
[1765245642387,0.01109951,90094.0,90089.0,0.001]
[1765245642648,0.01109865,90101.0,90093.0,0.22199282]
[1765245642785,0.01109865,90101.0,90092.0,0.03506976]
[1765245642786,0.02109523,90114.0,90110.0,0.22195094]
[1765245643027,0.04764668,90117.0,90110.0,0.22195094]
[1765245643028,0.01109693,90115.0,90112.0,0.0110973]
[1765245643227,0.02861705,90114.0,90110.0,0.27277317]
[1765245643437,0.02861705,90114.0,90110.0,0.05082223]
[1765245643661,0.22194803,90112.0,90110.0,0.02441469]
[1765245643872,0.01109779,90108.0,90105.0,0.01109816]
[1765245644271,0.01109791,90107.0,90103.0,0.0110984]
[1765245644486,0.01109791,90107.0,90104.0,0.01109828]
[1765245645142,0.01109767,90109.0,90104.0,0.233064]
[1765245645404,0.002,90112.0,90109.0,0.01109767]
[1765245645604,0.23304276,90113.0,90110.0,0.05143362]
[1765245645605,0.01109717,90113.0,90110.0,0.05143362]
[1765245645994,0.23304279,90113.0,90110.0,0.05143362]
[1765245646623,0.01109717,90113.0,90110.0,0.05143362]
[1765245646847,0.23304271,90113.0,90110.0,0.05143362]
[1765245646998,0.03884055,90112.0,90109.0,0.001]
[1765245647197,0.22194848,90111.0,90109.0,0.001]
[1765245647402,0.02774386,90110.0,90109.0,0.001]
[1765245647803,0.06866386,90110.0,90109.0,0.001]
[1765245648007,0.01109865,90101.0,90095.0,0.01109939]
[1765245648328,0.02861865,90101.0,90097.0,0.01109914]
[1765245648686,0.01752,90101.0,90098.0,0.23307953]
[1765245648954,0.01752,90101.0,90100.0,0.01531]
[1765245649257,0.01952,90101.0,90100.0,0.01531]
[1765245649956,0.01952,90101.0,90098.0,0.01109902]
[1765245650124,0.01952,90101.0,90098.0,0.03308142]
[1765245650326,0.23949315,90101.0,90097.0,0.01109914]
[1765245650651,0.24149315,90101.0,90097.0,0.01109914]
[1765245651091,0.01109927,90096.0,90092.0,0.00866]
[1765245651216,0.22199195,90094.0,90092.0,0.00866]
[1765245651411,0.22199195,90094.0,90093.0,0.04835297]
[1765245651868,0.01109939,90095.0,90093.0,0.04835297]
[1765245652070,0.01109914,90097.0,90093.0,0.04835297]
[1765245652398,0.0110989,90099.0,90095.0,0.01109939]
[1765245652518,0.23306956,90102.0,90097.0,0.01109914]
[1765245652719,0.02861865,90101.0,90097.0,0.08793712]
[1765245652958,0.01109877,90100.0,90097.0,0.08793712]
[1765245653555,0.01109877,90100.0,90097.0,0.30992009]
[1765245653957,0.01752,90101.0,90100.0,0.22197558]
[1765245654134,0.01752,90101.0,90100.0,0.30673884]
[1765245654345,0.01752,90101.0,90100.0,0.32218884]
[1765245654607,0.01752,90101.0,90100.0,0.30673884]
[1765245655562,0.01952,90101.0,90100.0,0.30673884]
[1765245655945,0.01752,90101.0,90100.0,0.30673884]
[1765245656176,0.01752,90101.0,90100.0,0.08476326]
[1765245657706,0.01852,90101.0,90098.0,0.23307769]
[1765245657881,0.01852,90101.0,90100.0,0.001]
[1765245658471,0.01852,90101.0,90099.0,0.22197602]
[1765245659581,0.01852,90101.0,90100.0,0.01545]
[1765245660236,0.01752,90101.0,90100.0,0.01545]
[1765245660448,0.01852,90101.0,90100.0,0.10408878]
[1765245660826,0.01752,90101.0,90100.0,0.08863878]
[1765245661143,0.01852,90101.0,90100.0,0.08863878]
[1765245661574,0.01852,90101.0,90100.0,0.08963878]
[1765245662098,0.01852,90101.0,90100.0,0.12939878]
[1765245663230,0.001,90101.0,90100.0,0.12939878]
[1765245663552,0.001,90101.0,90100.0,0.10508878]
[1765245663962,0.001,90101.0,90100.0,0.08963878]
[1765245664159,0.001,90101.0,90100.0,0.001]
[1765245665229,0.06742663,90101.0,90100.0,0.001]
[1765245665380,0.08942663,90101.0,90100.0,0.001]
[1765245665933,0.08938224,90101.0,90100.0,0.001]
[1765245666340,0.08842663,90101.0,90100.0,0.001]
[1765245666735,0.09042663,90101.0,90100.0,0.001]
[1765245667340,0.01109964,90093.0,90090.0,0.01110001]
[1765245667551,0.01752,90092.0,90091.0,0.02664099]
[1765245669606,0.01752,90092.0,90091.0,0.02764099]
[1765245670448,0.01752,90092.0,90091.0,0.02964099]
[1765245672597,0.01752,90092.0,90091.0,0.25163874]
[1765245673414,0.28902347,90092.0,90091.0,0.003]
[1765245674179,0.28902347,90092.0,90091.0,0.001]
[1765245674379,0.25510529,90092.0,90091.0,0.001]
[1765245674573,0.27902529,90092.0,90091.0,0.001]
[1765245675553,0.25510529,90092.0,90091.0,0.001]
[1765245675922,0.23310383,90089.0,90086.0,0.0111005]
[1765245676312,0.01110038,90087.0,90084.0,0.01110075]
[1765245676516,0.01110038,90087.0,90085.0,0.04986903]
[1765245676870,0.01110112,90081.0,90075.0,0.01110185]
[1765245677072,0.22201254,90085.0,90072.0,0.23070343]
[1765245677073,0.01110161,90077.0,90073.0,0.0111021]
[1765245677391,0.01110185,90075.0,90072.0,0.00866]
[1765245677598,0.22204181,90074.0,90073.0,0.03538656]
[1765245677800,0.22204181,90074.0,90064.0,0.00866]
[1765245677801,0.01110284,90067.0,90064.0,0.00866]
[1765245678227,0.01110272,90068.0,90064.0,0.01976321]
[1765245678545,0.01110272,90068.0,90065.0,0.01110309]
[1765245679072,0.01110272,90068.0,90065.0,0.23316486]
[1765245679292,0.01110272,90068.0,90066.0,0.04861027]
[1765245679616,0.22205691,90067.0,90066.0,0.04861027]
[1765245680039,0.01110272,90068.0,90066.0,0.04861027]
[1765245680445,0.22205691,90067.0,90066.0,0.04961027]
[1765245680648,0.01110272,90068.0,90066.0,0.04961027]
[1765245680825,0.22205285,90069.0,90067.0,0.07577839]
[1765245681025,0.26310323,90070.0,90067.0,0.07577839]
[1765245681264,0.00066182,90068.0,90067.0,0.07577839]
[1765245681995,0.00066182,90068.0,90065.0,0.01110309]
[1765245682129,0.01110259,90069.0,90066.0,0.01110296]
[1765245682331,0.01110259,90069.0,90066.0,0.01210296]
[1765245682555,0.00063188,90067.0,90066.0,0.01210296]
[1765245683223,0.01110346,90062.0,90054.0,0.01976444]
[1765245683423,0.01110358,90061.0,90056.0,0.0111042]
[1765245683543,0.01110358,90061.0,90057.0,0.04994354]
[1765245683888,0.01110358,90061.0,90058.0,0.01110395]
[1765245684279,0.01243,90063.0,90061.0,0.22207164]
[1765245684616,0.00361287,90067.0,90064.0,0.01110321]
[1765245684824,0.00361287,90067.0,90065.0,0.22205992]
[1765245685491,0.00161287,90067.0,90065.0,0.22205992]
[1765245685692,0.02669296,90066.0,90062.0,0.2331727]
[1765245685902,0.24875428,90066.0,90062.0,0.01110346]
[1765245686054,0.24875428,90066.0,90063.0,0.08252991]
[1765245687020,0.00161287,90067.0,90063.0,0.31569818]
[1765245687184,6.62966796,90066.0,90063.0,0.09363324]
[1765245688633,6.618565,90066.0,90063.0,0.31569815]
[1765245689054,0.00054206,90064.0,90063.0,0.31569815]
[1765245689454,0.02723527,90064.0,90061.0,0.05360668]
[1765245689615,0.23316751,90064.0,90061.0,0.05360668]
[1765245689818,6.85172803,90066.0,90061.0,0.06471026]
[1765245690252,0.01559,90062.0,90061.0,0.05360668]
[1765245690452,0.01110358,90061.0,90054.0,0.01976444]
[1765245690632,0.25073959,90060.0,90055.0,0.23318882]
[1765245690827,0.25073959,90060.0,90056.0,0.0111042]
[1765245691038,0.0286637,90060.0,90057.0,0.28312909]
[1765245691234,0.0286637,90060.0,90057.0,0.06104761]
[1765245691412,0.0286637,90060.0,90058.0,0.0547195]
[1765245692104,0.22207663,90059.0,90057.0,0.04994354]
[1765245693050,0.22207663,90059.0,90058.0,0.001]
[1765245693472,0.22207663,90059.0,90048.0,0.01110518]
[1765245693473,0.23320471,90050.0,90045.0,0.01110555]
[1765245693679,0.23320471,90050.0,90044.0,0.22211154]
[1765245693680,0.23966323,90049.0,90044.0,0.01110568]
[1765245693877,0.23966323,90049.0,90048.0,0.02640917]
[1765245694111,0.01756,90049.0,90048.0,0.02640917]
[1765245695628,0.2396613,90049.0,90047.0,0.01066]
[1765245696004,0.2332315,90040.0,90035.0,0.01110679]
[1765245696172,0.01756,90039.0,90037.0,0.23323643]
[1765245696370,0.01756,90039.0,90038.0,0.05084671]
[1765245698519,0.01856,90039.0,90038.0,0.05084671]
[1765245699560,0.01856,90039.0,90038.0,0.06678671]
[1765245699762,0.01856,90039.0,90038.0,0.09057671]
[1765245700017,0.01856,90039.0,90038.0,0.06678671]
[1765245703091,0.01856,90039.0,90038.0,0.05084671]
[1765245703300,0.24068596,90039.0,90038.0,0.05084671]
[1765245703875,0.01856,90039.0,90038.0,0.08899671]
[1765245704329,0.01856,90039.0,90038.0,0.31112514]
[1765245705845,0.01856,90039.0,90038.0,0.31212514]
[1765245707236,0.01756,90039.0,90038.0,0.31212514]
[1765245707881,0.01756,90039.0,90038.0,0.31312514]
[1765245713972,0.01110469,90052.0,90048.0,0.23320835]
[1765245714186,0.01110543,90046.0,90039.0,0.01110629]
[1765245714412,0.2332164,90046.0,90040.0,0.01218697]
[1765245714564,0.0111058,90043.0,90040.0,0.01218697]
[1765245714765,0.01756,90042.0,90040.0,0.01218697]
[1765245715558,0.01110605,90041.0,90037.0,0.2221309]
[1765245715763,0.01110617,90040.0,90036.0,0.01110666]
[1765245716400,0.01110617,90040.0,90037.0,0.01110654]
[1765245717349,0.01110605,90041.0,90038.0,0.01110642]
[1765245717663,0.01110605,90041.0,90040.0,0.001]
[1765245717870,0.01110605,90041.0,90040.0,0.05122266]
[1765245718816,0.01110605,90041.0,90040.0,0.05022266]
[1765245720107,0.01756,90042.0,90040.0,0.05022266]
[1765245720309,0.24929103,90041.0,90040.0,0.00038746]
[1765245720521,0.29442103,90041.0,90040.0,0.00038746]
[1765245720780,0.01110494,90050.0,90046.0,0.01110543]
[1765245721067,0.01110383,90059.0,90055.0,0.01110432]
[1765245721252,0.02866395,90058.0,90054.0,0.01110444]
[1765245721487,0.02866395,90058.0,90055.0,0.08331379]
[1765245721488,0.01756,90058.0,90055.0,0.08331379]
[1765245721618,0.00042229,90060.0,90059.0,0.22207663]
[1765245721861,0.01798229,90060.0,90059.0,0.23718663]
[1765245722079,0.01798229,90060.0,90059.0,0.26022663]
[1765245722286,0.01798229,90060.0,90059.0,0.34319554]
[1765245723943,0.01798229,90060.0,90059.0,0.34619554]
[1765245724390,0.01798229,90060.0,90059.0,0.34819554]
[1765245725960,0.0090972,90060.0,90059.0,0.34819554]
[1765245726609,0.0090972,90060.0,90059.0,0.32515554]
[1765245726825,0.0090972,90060.0,90059.0,0.34819554]
[1765245727257,0.0090972,90060.0,90059.0,0.34619554]
[1765245727466,0.0090972,90060.0,90059.0,0.34319554]
[1765245727670,0.0090972,90060.0,90059.0,0.34419554]
[1765245728334,0.0090972,90060.0,90059.0,0.34319554]
[1765245728542,0.0090972,90060.0,90059.0,0.34819554]
[1765245731598,0.02422,90097.0,90065.0,0.54506184]
[1765245731773,4.28780998,90066.0,90065.0,0.97231175]
[1765245731994,2.5155857,90066.0,90065.0,1.05850474]
[1765245732196,2.5155857,90066.0,90065.0,1.09183809]
[1765245732376,2.35756753,90066.0,90065.0,1.09183809]
[1765245733034,2.35756753,90066.0,90065.0,1.06916809]